{"text_format":"1","workbook":"xlsx","n_sheets":4,"sheets":["Vstupné údaje","Výsledky MUŽI","Výsledky ŽENY","Výsledky MUŽI nad 35 rokov"],"not_rendered":{"charts":0,"images":0,"macros":1,"external_links":0,"defined_names":0,"comments":0,"pivot_tables":0},"unopened":[],"bounds":{"document_bytes":16777216,"sheet_cells":100000,"rows_first":2000,"rows_last":500,"rows_between":2000,"halvings":0,"cell_chars":16384,"cell_head_chars":4096},"cells_cut":0,"cells_raw":0,"read":"whole","date_system":"1900"}

{"sheet":"Vstupné údaje","index":0,"n_rows":7,"n_cols":2,"rows_kept":7,"cut":false,"hidden":false,"merged":[[0,0,0,1]]}
["Vstupné údaje"]
[]
["Požadovaný údaj","Hodnota"]
["Názov súťaže","Memoriál baróna Friesenhofa"]
["Dátum","2022-06-04"]
["Začiatok","14:00:00"]
["Kolo v ročníku",1]

{"sheet":"Výsledky MUŽI","index":1,"n_rows":30,"n_cols":13,"rows_kept":30,"cut":false,"hidden":false,"merged":[[0,0,0,7],[1,0,1,7],[0,12,1,12],[21,12,22,12]]}
[{"$f":"'Vstupné údaje'!$B$4","v":"Memoriál baróna Friesenhofa"},null,null,null,null,null,null,null,null,null,null,null,"Návod na plnohodnotnú prácu s výsledkami"]
[{"$f":"CONCATENATE(\"Výsledky \",'Vstupné údaje'!$B$7,\". kola SMHL \",TEXT('Vstupné údaje'!$B$5,\"yyyy\"),\" v kategórii MUŽI, ktoré sa konalo \",TEXT('Vstupné údaje'!$B$5,\"dd.mm.yyyy\"),\" o \",TEXT('Vstupné údaje'!$B$6,\"hh:mm\"))","v":"Výsledky 1. kola SMHL 2022 v kategórii MUŽI, ktoré sa konalo 04.06.2022 o 14:00"}]
[]
["Por.","Družstvo","Okres","ĽP","PP","Výs. čas","Body","Prestup",null,null,null,null,"Pri zadávaní výsledkov sa vypĺňajú nasledujúce stĺpce (zvyšné sa vypočítajú automaticky):"]
[{"$f":"IF(Výsledky_MUŽI[[#This Row],[Výs. čas]]=\"čas\",\"---\",IF(Výsledky_MUŽI[[#This Row],[Výs. čas]]=99.99,\"---\",IF(Výsledky_MUŽI[[#This Row],[Výs. čas]]=\"Diskv.\",\"---\",IF(Výsledky_MUŽI[[#This Row],[Výs. čas]]=\"Neúčasť\",\"---\",_xlfn.RANK.EQ(Výsledky_MUŽI[[#This Row],[Výs. čas]],Výsledky_MUŽI[Výs. čas],1)))))","v":{"$error":"#VALUE!"}},"Zbora \"A\"",null,13.96,13.71,13.96,{"$f":"IF(Výsledky_MUŽI[[#This Row],[Por.]]=1,20,IF(Výsledky_MUŽI[[#This Row],[Por.]]=2,17,IF(Výsledky_MUŽI[[#This Row],[Por.]]=3,15,IF(Výsledky_MUŽI[[#This Row],[Por.]]=4,13,IF(Výsledky_MUŽI[[#This Row],[Por.]]=5,11,IF(Výsledky_MUŽI[[#This Row],[Por.]]=6,9,IF(Výsledky_MUŽI[[#This Row],[Por.]]=7,8,IF(Výsledky_MUŽI[[#This Row],[Por.]]=8,7,IF(Výsledky_MUŽI[[#This Row],[Por.]]=9,6,IF(Výsledky_MUŽI[[#This Row],[Por.]]=10,5,IF(Výsledky_MUŽI[[#This Row],[Por.]]=11,4,IF(Výsledky_MUŽI[[#This Row],[Por.]]=12,3,IF(Výsledky_MUŽI[[#This Row],[Výs. čas]]=99.99,1,IF(Výsledky_MUŽI[[#This Row],[Výs. čas]]=\"Diskv.\",1,IF(Výsledky_MUŽI[[#This Row],[Výs. čas]]=\"Neúčasť\",0,2)))))))))))))))","v":{"$error":"#VALUE!"}},null,null,null,null,null,"--- družstvo"]
[{"$f":"IF(Výsledky_MUŽI[[#This Row],[Výs. čas]]=\"čas\",\"---\",IF(Výsledky_MUŽI[[#This Row],[Výs. čas]]=99.99,\"---\",IF(Výsledky_MUŽI[[#This Row],[Výs. čas]]=\"Diskv.\",\"---\",IF(Výsledky_MUŽI[[#This Row],[Výs. čas]]=\"Neúčasť\",\"---\",_xlfn.RANK.EQ(Výsledky_MUŽI[[#This Row],[Výs. čas]],Výsledky_MUŽI[Výs. čas],1)))))","v":{"$error":"#VALUE!"}},"Hoština",null,14.13,13.65,14.13,{"$f":"IF(Výsledky_MUŽI[[#This Row],[Por.]]=1,20,IF(Výsledky_MUŽI[[#This Row],[Por.]]=2,17,IF(Výsledky_MUŽI[[#This Row],[Por.]]=3,15,IF(Výsledky_MUŽI[[#This Row],[Por.]]=4,13,IF(Výsledky_MUŽI[[#This Row],[Por.]]=5,11,IF(Výsledky_MUŽI[[#This Row],[Por.]]=6,9,IF(Výsledky_MUŽI[[#This Row],[Por.]]=7,8,IF(Výsledky_MUŽI[[#This Row],[Por.]]=8,7,IF(Výsledky_MUŽI[[#This Row],[Por.]]=9,6,IF(Výsledky_MUŽI[[#This Row],[Por.]]=10,5,IF(Výsledky_MUŽI[[#This Row],[Por.]]=11,4,IF(Výsledky_MUŽI[[#This Row],[Por.]]=12,3,IF(Výsledky_MUŽI[[#This Row],[Výs. čas]]=99.99,1,IF(Výsledky_MUŽI[[#This Row],[Výs. čas]]=\"Diskv.\",1,IF(Výsledky_MUŽI[[#This Row],[Výs. čas]]=\"Neúčasť\",0,2)))))))))))))))","v":{"$error":"#VALUE!"}},null,null,null,null,null,"--- okres"]
[{"$f":"IF(Výsledky_MUŽI[[#This Row],[Výs. čas]]=\"čas\",\"---\",IF(Výsledky_MUŽI[[#This Row],[Výs. čas]]=99.99,\"---\",IF(Výsledky_MUŽI[[#This Row],[Výs. čas]]=\"Diskv.\",\"---\",IF(Výsledky_MUŽI[[#This Row],[Výs. čas]]=\"Neúčasť\",\"---\",_xlfn.RANK.EQ(Výsledky_MUŽI[[#This Row],[Výs. čas]],Výsledky_MUŽI[Výs. čas],1)))))","v":{"$error":"#VALUE!"}},"Ďurďové",null,13.51,14.25,14.25,{"$f":"IF(Výsledky_MUŽI[[#This Row],[Por.]]=1,20,IF(Výsledky_MUŽI[[#This Row],[Por.]]=2,17,IF(Výsledky_MUŽI[[#This Row],[Por.]]=3,15,IF(Výsledky_MUŽI[[#This Row],[Por.]]=4,13,IF(Výsledky_MUŽI[[#This Row],[Por.]]=5,11,IF(Výsledky_MUŽI[[#This Row],[Por.]]=6,9,IF(Výsledky_MUŽI[[#This Row],[Por.]]=7,8,IF(Výsledky_MUŽI[[#This Row],[Por.]]=8,7,IF(Výsledky_MUŽI[[#This Row],[Por.]]=9,6,IF(Výsledky_MUŽI[[#This Row],[Por.]]=10,5,IF(Výsledky_MUŽI[[#This Row],[Por.]]=11,4,IF(Výsledky_MUŽI[[#This Row],[Por.]]=12,3,IF(Výsledky_MUŽI[[#This Row],[Výs. čas]]=99.99,1,IF(Výsledky_MUŽI[[#This Row],[Výs. čas]]=\"Diskv.\",1,IF(Výsledky_MUŽI[[#This Row],[Výs. čas]]=\"Neúčasť\",0,2)))))))))))))))","v":{"$error":"#VALUE!"}},null,null,null,null,null,"--- ľavý prúd (ĽP)"]
[{"$f":"IF(Výsledky_MUŽI[[#This Row],[Výs. čas]]=\"čas\",\"---\",IF(Výsledky_MUŽI[[#This Row],[Výs. čas]]=99.99,\"---\",IF(Výsledky_MUŽI[[#This Row],[Výs. čas]]=\"Diskv.\",\"---\",IF(Výsledky_MUŽI[[#This Row],[Výs. čas]]=\"Neúčasť\",\"---\",_xlfn.RANK.EQ(Výsledky_MUŽI[[#This Row],[Výs. čas]],Výsledky_MUŽI[Výs. čas],1)))))","v":{"$error":"#VALUE!"}},"Francova Lhota",null,14.53,13.79,14.53,{"$f":"IF(Výsledky_MUŽI[[#This Row],[Por.]]=1,20,IF(Výsledky_MUŽI[[#This Row],[Por.]]=2,17,IF(Výsledky_MUŽI[[#This Row],[Por.]]=3,15,IF(Výsledky_MUŽI[[#This Row],[Por.]]=4,13,IF(Výsledky_MUŽI[[#This Row],[Por.]]=5,11,IF(Výsledky_MUŽI[[#This Row],[Por.]]=6,9,IF(Výsledky_MUŽI[[#This Row],[Por.]]=7,8,IF(Výsledky_MUŽI[[#This Row],[Por.]]=8,7,IF(Výsledky_MUŽI[[#This Row],[Por.]]=9,6,IF(Výsledky_MUŽI[[#This Row],[Por.]]=10,5,IF(Výsledky_MUŽI[[#This Row],[Por.]]=11,4,IF(Výsledky_MUŽI[[#This Row],[Por.]]=12,3,IF(Výsledky_MUŽI[[#This Row],[Výs. čas]]=99.99,1,IF(Výsledky_MUŽI[[#This Row],[Výs. čas]]=\"Diskv.\",1,IF(Výsledky_MUŽI[[#This Row],[Výs. čas]]=\"Neúčasť\",0,2)))))))))))))))","v":{"$error":"#VALUE!"}},null,null,null,null,null,"--- pravý prúd (PP)"]
[{"$f":"IF(Výsledky_MUŽI[[#This Row],[Výs. čas]]=\"čas\",\"---\",IF(Výsledky_MUŽI[[#This Row],[Výs. čas]]=99.99,\"---\",IF(Výsledky_MUŽI[[#This Row],[Výs. čas]]=\"Diskv.\",\"---\",IF(Výsledky_MUŽI[[#This Row],[Výs. čas]]=\"Neúčasť\",\"---\",_xlfn.RANK.EQ(Výsledky_MUŽI[[#This Row],[Výs. čas]],Výsledky_MUŽI[Výs. čas],1)))))","v":{"$error":"#VALUE!"}},"Brumov \"B\"",null,14.7,14.63,14.7,{"$f":"IF(Výsledky_MUŽI[[#This Row],[Por.]]=1,20,IF(Výsledky_MUŽI[[#This Row],[Por.]]=2,17,IF(Výsledky_MUŽI[[#This Row],[Por.]]=3,15,IF(Výsledky_MUŽI[[#This Row],[Por.]]=4,13,IF(Výsledky_MUŽI[[#This Row],[Por.]]=5,11,IF(Výsledky_MUŽI[[#This Row],[Por.]]=6,9,IF(Výsledky_MUŽI[[#This Row],[Por.]]=7,8,IF(Výsledky_MUŽI[[#This Row],[Por.]]=8,7,IF(Výsledky_MUŽI[[#This Row],[Por.]]=9,6,IF(Výsledky_MUŽI[[#This Row],[Por.]]=10,5,IF(Výsledky_MUŽI[[#This Row],[Por.]]=11,4,IF(Výsledky_MUŽI[[#This Row],[Por.]]=12,3,IF(Výsledky_MUŽI[[#This Row],[Výs. čas]]=99.99,1,IF(Výsledky_MUŽI[[#This Row],[Výs. čas]]=\"Diskv.\",1,IF(Výsledky_MUŽI[[#This Row],[Výs. čas]]=\"Neúčasť\",0,2)))))))))))))))","v":{"$error":"#VALUE!"}},null,null,null,null,null,"--- prestup"]
[{"$f":"IF(Výsledky_MUŽI[[#This Row],[Výs. čas]]=\"čas\",\"---\",IF(Výsledky_MUŽI[[#This Row],[Výs. čas]]=99.99,\"---\",IF(Výsledky_MUŽI[[#This Row],[Výs. čas]]=\"Diskv.\",\"---\",IF(Výsledky_MUŽI[[#This Row],[Výs. čas]]=\"Neúčasť\",\"---\",_xlfn.RANK.EQ(Výsledky_MUŽI[[#This Row],[Výs. čas]],Výsledky_MUŽI[Výs. čas],1)))))","v":{"$error":"#VALUE!"}},"Podlužany",null,14.84,14.77,14.84,{"$f":"IF(Výsledky_MUŽI[[#This Row],[Por.]]=1,20,IF(Výsledky_MUŽI[[#This Row],[Por.]]=2,17,IF(Výsledky_MUŽI[[#This Row],[Por.]]=3,15,IF(Výsledky_MUŽI[[#This Row],[Por.]]=4,13,IF(Výsledky_MUŽI[[#This Row],[Por.]]=5,11,IF(Výsledky_MUŽI[[#This Row],[Por.]]=6,9,IF(Výsledky_MUŽI[[#This Row],[Por.]]=7,8,IF(Výsledky_MUŽI[[#This Row],[Por.]]=8,7,IF(Výsledky_MUŽI[[#This Row],[Por.]]=9,6,IF(Výsledky_MUŽI[[#This Row],[Por.]]=10,5,IF(Výsledky_MUŽI[[#This Row],[Por.]]=11,4,IF(Výsledky_MUŽI[[#This Row],[Por.]]=12,3,IF(Výsledky_MUŽI[[#This Row],[Výs. čas]]=99.99,1,IF(Výsledky_MUŽI[[#This Row],[Výs. čas]]=\"Diskv.\",1,IF(Výsledky_MUŽI[[#This Row],[Výs. čas]]=\"Neúčasť\",0,2)))))))))))))))","v":{"$error":"#VALUE!"}}]
[{"$f":"IF(Výsledky_MUŽI[[#This Row],[Výs. čas]]=\"čas\",\"---\",IF(Výsledky_MUŽI[[#This Row],[Výs. čas]]=99.99,\"---\",IF(Výsledky_MUŽI[[#This Row],[Výs. čas]]=\"Diskv.\",\"---\",IF(Výsledky_MUŽI[[#This Row],[Výs. čas]]=\"Neúčasť\",\"---\",_xlfn.RANK.EQ(Výsledky_MUŽI[[#This Row],[Výs. čas]],Výsledky_MUŽI[Výs. čas],1)))))","v":{"$error":"#VALUE!"}},"Ihrište",null,15.03,14.74,15.03,{"$f":"IF(Výsledky_MUŽI[[#This Row],[Por.]]=1,20,IF(Výsledky_MUŽI[[#This Row],[Por.]]=2,17,IF(Výsledky_MUŽI[[#This Row],[Por.]]=3,15,IF(Výsledky_MUŽI[[#This Row],[Por.]]=4,13,IF(Výsledky_MUŽI[[#This Row],[Por.]]=5,11,IF(Výsledky_MUŽI[[#This Row],[Por.]]=6,9,IF(Výsledky_MUŽI[[#This Row],[Por.]]=7,8,IF(Výsledky_MUŽI[[#This Row],[Por.]]=8,7,IF(Výsledky_MUŽI[[#This Row],[Por.]]=9,6,IF(Výsledky_MUŽI[[#This Row],[Por.]]=10,5,IF(Výsledky_MUŽI[[#This Row],[Por.]]=11,4,IF(Výsledky_MUŽI[[#This Row],[Por.]]=12,3,IF(Výsledky_MUŽI[[#This Row],[Výs. čas]]=99.99,1,IF(Výsledky_MUŽI[[#This Row],[Výs. čas]]=\"Diskv.\",1,IF(Výsledky_MUŽI[[#This Row],[Výs. čas]]=\"Neúčasť\",0,2)))))))))))))))","v":{"$error":"#VALUE!"}},null,null,null,null,null,"Dovolený formát zadávaných údajov:"]
[{"$f":"IF(Výsledky_MUŽI[[#This Row],[Výs. čas]]=\"čas\",\"---\",IF(Výsledky_MUŽI[[#This Row],[Výs. čas]]=99.99,\"---\",IF(Výsledky_MUŽI[[#This Row],[Výs. čas]]=\"Diskv.\",\"---\",IF(Výsledky_MUŽI[[#This Row],[Výs. čas]]=\"Neúčasť\",\"---\",_xlfn.RANK.EQ(Výsledky_MUŽI[[#This Row],[Výs. čas]],Výsledky_MUŽI[Výs. čas],1)))))","v":{"$error":"#VALUE!"}},"Ruskovce",null,16.489999999999998,16.190000000000001,16.489999999999998,{"$f":"IF(Výsledky_MUŽI[[#This Row],[Por.]]=1,20,IF(Výsledky_MUŽI[[#This Row],[Por.]]=2,17,IF(Výsledky_MUŽI[[#This Row],[Por.]]=3,15,IF(Výsledky_MUŽI[[#This Row],[Por.]]=4,13,IF(Výsledky_MUŽI[[#This Row],[Por.]]=5,11,IF(Výsledky_MUŽI[[#This Row],[Por.]]=6,9,IF(Výsledky_MUŽI[[#This Row],[Por.]]=7,8,IF(Výsledky_MUŽI[[#This Row],[Por.]]=8,7,IF(Výsledky_MUŽI[[#This Row],[Por.]]=9,6,IF(Výsledky_MUŽI[[#This Row],[Por.]]=10,5,IF(Výsledky_MUŽI[[#This Row],[Por.]]=11,4,IF(Výsledky_MUŽI[[#This Row],[Por.]]=12,3,IF(Výsledky_MUŽI[[#This Row],[Výs. čas]]=99.99,1,IF(Výsledky_MUŽI[[#This Row],[Výs. čas]]=\"Diskv.\",1,IF(Výsledky_MUŽI[[#This Row],[Výs. čas]]=\"Neúčasť\",0,2)))))))))))))))","v":{"$error":"#VALUE!"}},null,null,null,null,null,"Družstvo, okres"]
[{"$f":"IF(Výsledky_MUŽI[[#This Row],[Výs. čas]]=\"čas\",\"---\",IF(Výsledky_MUŽI[[#This Row],[Výs. čas]]=99.99,\"---\",IF(Výsledky_MUŽI[[#This Row],[Výs. čas]]=\"Diskv.\",\"---\",IF(Výsledky_MUŽI[[#This Row],[Výs. čas]]=\"Neúčasť\",\"---\",_xlfn.RANK.EQ(Výsledky_MUŽI[[#This Row],[Výs. čas]],Výsledky_MUŽI[Výs. čas],1)))))","v":{"$error":"#VALUE!"}},"Zbora \"B\"",null,16.489999999999998,16.45,16.489999999999998,{"$f":"IF(Výsledky_MUŽI[[#This Row],[Por.]]=1,20,IF(Výsledky_MUŽI[[#This Row],[Por.]]=2,17,IF(Výsledky_MUŽI[[#This Row],[Por.]]=3,15,IF(Výsledky_MUŽI[[#This Row],[Por.]]=4,13,IF(Výsledky_MUŽI[[#This Row],[Por.]]=5,11,IF(Výsledky_MUŽI[[#This Row],[Por.]]=6,9,IF(Výsledky_MUŽI[[#This Row],[Por.]]=7,8,IF(Výsledky_MUŽI[[#This Row],[Por.]]=8,7,IF(Výsledky_MUŽI[[#This Row],[Por.]]=9,6,IF(Výsledky_MUŽI[[#This Row],[Por.]]=10,5,IF(Výsledky_MUŽI[[#This Row],[Por.]]=11,4,IF(Výsledky_MUŽI[[#This Row],[Por.]]=12,3,IF(Výsledky_MUŽI[[#This Row],[Výs. čas]]=99.99,1,IF(Výsledky_MUŽI[[#This Row],[Výs. čas]]=\"Diskv.\",1,IF(Výsledky_MUŽI[[#This Row],[Výs. čas]]=\"Neúčasť\",0,2)))))))))))))))","v":{"$error":"#VALUE!"}},null,null,null,null,null,"--- ľubovoľný text"]
[{"$f":"IF(Výsledky_MUŽI[[#This Row],[Výs. čas]]=\"čas\",\"---\",IF(Výsledky_MUŽI[[#This Row],[Výs. čas]]=99.99,\"---\",IF(Výsledky_MUŽI[[#This Row],[Výs. čas]]=\"Diskv.\",\"---\",IF(Výsledky_MUŽI[[#This Row],[Výs. čas]]=\"Neúčasť\",\"---\",_xlfn.RANK.EQ(Výsledky_MUŽI[[#This Row],[Výs. čas]],Výsledky_MUŽI[Výs. čas],1)))))","v":{"$error":"#VALUE!"}},"Krásno","PE",17.98,14.83,17.98,{"$f":"IF(Výsledky_MUŽI[[#This Row],[Por.]]=1,20,IF(Výsledky_MUŽI[[#This Row],[Por.]]=2,17,IF(Výsledky_MUŽI[[#This Row],[Por.]]=3,15,IF(Výsledky_MUŽI[[#This Row],[Por.]]=4,13,IF(Výsledky_MUŽI[[#This Row],[Por.]]=5,11,IF(Výsledky_MUŽI[[#This Row],[Por.]]=6,9,IF(Výsledky_MUŽI[[#This Row],[Por.]]=7,8,IF(Výsledky_MUŽI[[#This Row],[Por.]]=8,7,IF(Výsledky_MUŽI[[#This Row],[Por.]]=9,6,IF(Výsledky_MUŽI[[#This Row],[Por.]]=10,5,IF(Výsledky_MUŽI[[#This Row],[Por.]]=11,4,IF(Výsledky_MUŽI[[#This Row],[Por.]]=12,3,IF(Výsledky_MUŽI[[#This Row],[Výs. čas]]=99.99,1,IF(Výsledky_MUŽI[[#This Row],[Výs. čas]]=\"Diskv.\",1,IF(Výsledky_MUŽI[[#This Row],[Výs. čas]]=\"Neúčasť\",0,2)))))))))))))))","v":{"$error":"#VALUE!"}},null,null,null,null,null,"Ľavý/pravý prúd"]
[{"$f":"IF(Výsledky_MUŽI[[#This Row],[Výs. čas]]=\"čas\",\"---\",IF(Výsledky_MUŽI[[#This Row],[Výs. čas]]=99.99,\"---\",IF(Výsledky_MUŽI[[#This Row],[Výs. čas]]=\"Diskv.\",\"---\",IF(Výsledky_MUŽI[[#This Row],[Výs. čas]]=\"Neúčasť\",\"---\",_xlfn.RANK.EQ(Výsledky_MUŽI[[#This Row],[Výs. čas]],Výsledky_MUŽI[Výs. čas],1)))))","v":{"$error":"#VALUE!"}},"Lednicke Rovne",null,26.36,25.93,26.36,{"$f":"IF(Výsledky_MUŽI[[#This Row],[Por.]]=1,20,IF(Výsledky_MUŽI[[#This Row],[Por.]]=2,17,IF(Výsledky_MUŽI[[#This Row],[Por.]]=3,15,IF(Výsledky_MUŽI[[#This Row],[Por.]]=4,13,IF(Výsledky_MUŽI[[#This Row],[Por.]]=5,11,IF(Výsledky_MUŽI[[#This Row],[Por.]]=6,9,IF(Výsledky_MUŽI[[#This Row],[Por.]]=7,8,IF(Výsledky_MUŽI[[#This Row],[Por.]]=8,7,IF(Výsledky_MUŽI[[#This Row],[Por.]]=9,6,IF(Výsledky_MUŽI[[#This Row],[Por.]]=10,5,IF(Výsledky_MUŽI[[#This Row],[Por.]]=11,4,IF(Výsledky_MUŽI[[#This Row],[Por.]]=12,3,IF(Výsledky_MUŽI[[#This Row],[Výs. čas]]=99.99,1,IF(Výsledky_MUŽI[[#This Row],[Výs. čas]]=\"Diskv.\",1,IF(Výsledky_MUŽI[[#This Row],[Výs. čas]]=\"Neúčasť\",0,2)))))))))))))))","v":{"$error":"#VALUE!"}},null,null,null,null,null,"14.00 --- dokončený pokus"]
[{"$f":"IF(Výsledky_MUŽI[[#This Row],[Výs. čas]]=\"čas\",\"---\",IF(Výsledky_MUŽI[[#This Row],[Výs. čas]]=99.99,\"---\",IF(Výsledky_MUŽI[[#This Row],[Výs. čas]]=\"Diskv.\",\"---\",IF(Výsledky_MUŽI[[#This Row],[Výs. čas]]=\"Neúčasť\",\"---\",_xlfn.RANK.EQ(Výsledky_MUŽI[[#This Row],[Výs. čas]],Výsledky_MUŽI[Výs. čas],1)))))","v":{"$error":"#VALUE!"}},"Poruba",null,30.35,14.48,30.35,{"$f":"IF(Výsledky_MUŽI[[#This Row],[Por.]]=1,20,IF(Výsledky_MUŽI[[#This Row],[Por.]]=2,17,IF(Výsledky_MUŽI[[#This Row],[Por.]]=3,15,IF(Výsledky_MUŽI[[#This Row],[Por.]]=4,13,IF(Výsledky_MUŽI[[#This Row],[Por.]]=5,11,IF(Výsledky_MUŽI[[#This Row],[Por.]]=6,9,IF(Výsledky_MUŽI[[#This Row],[Por.]]=7,8,IF(Výsledky_MUŽI[[#This Row],[Por.]]=8,7,IF(Výsledky_MUŽI[[#This Row],[Por.]]=9,6,IF(Výsledky_MUŽI[[#This Row],[Por.]]=10,5,IF(Výsledky_MUŽI[[#This Row],[Por.]]=11,4,IF(Výsledky_MUŽI[[#This Row],[Por.]]=12,3,IF(Výsledky_MUŽI[[#This Row],[Výs. čas]]=99.99,1,IF(Výsledky_MUŽI[[#This Row],[Výs. čas]]=\"Diskv.\",1,IF(Výsledky_MUŽI[[#This Row],[Výs. čas]]=\"Neúčasť\",0,2)))))))))))))))","v":{"$error":"#VALUE!"}},null,null,null,null,null,"99.99 --- nedokončený pokus"]
[{"$f":"IF(Výsledky_MUŽI[[#This Row],[Výs. čas]]=\"čas\",\"---\",IF(Výsledky_MUŽI[[#This Row],[Výs. čas]]=99.99,\"---\",IF(Výsledky_MUŽI[[#This Row],[Výs. čas]]=\"Diskv.\",\"---\",IF(Výsledky_MUŽI[[#This Row],[Výs. čas]]=\"Neúčasť\",\"---\",_xlfn.RANK.EQ(Výsledky_MUŽI[[#This Row],[Výs. čas]],Výsledky_MUŽI[Výs. čas],1)))))","v":"---"},null,null,null,null,{"$f":"IF(AND(ISBLANK(Výsledky_MUŽI[[#This Row],[PP]])),\"čas\",IF(Výsledky_MUŽI[[#This Row],[ĽP]]=\"D\",\"Diskv.\",IF(Výsledky_MUŽI[[#This Row],[PP]]=\"D\",\"Diskv.\",IF(Výsledky_MUŽI[[#This Row],[ĽP]]=\"n\",\"Neúčasť\",IF(Výsledky_MUŽI[[#This Row],[PP]]=\"n\",\"Neúčasť\",MAX(SUBSTITUTE(Výsledky_MUŽI[[#This Row],[ĽP]],\",\",\".\"),SUBSTITUTE(Výsledky_MUŽI[[#This Row],[PP]],\",\",\".\")))))))","v":"čas"},{"$f":"IF(Výsledky_MUŽI[[#This Row],[Por.]]=1,20,IF(Výsledky_MUŽI[[#This Row],[Por.]]=2,17,IF(Výsledky_MUŽI[[#This Row],[Por.]]=3,15,IF(Výsledky_MUŽI[[#This Row],[Por.]]=4,13,IF(Výsledky_MUŽI[[#This Row],[Por.]]=5,11,IF(Výsledky_MUŽI[[#This Row],[Por.]]=6,9,IF(Výsledky_MUŽI[[#This Row],[Por.]]=7,8,IF(Výsledky_MUŽI[[#This Row],[Por.]]=8,7,IF(Výsledky_MUŽI[[#This Row],[Por.]]=9,6,IF(Výsledky_MUŽI[[#This Row],[Por.]]=10,5,IF(Výsledky_MUŽI[[#This Row],[Por.]]=11,4,IF(Výsledky_MUŽI[[#This Row],[Por.]]=12,3,IF(Výsledky_MUŽI[[#This Row],[Výs. čas]]=99.99,1,IF(Výsledky_MUŽI[[#This Row],[Výs. čas]]=\"Diskv.\",1,IF(Výsledky_MUŽI[[#This Row],[Výs. čas]]=\"Neúčasť\",0,2)))))))))))))))","v":2},null,null,null,null,null,"D        --- diskvalifikácia družstva"]
[{"$f":"IF(Výsledky_MUŽI[[#This Row],[Výs. čas]]=\"čas\",\"---\",IF(Výsledky_MUŽI[[#This Row],[Výs. čas]]=99.99,\"---\",IF(Výsledky_MUŽI[[#This Row],[Výs. čas]]=\"Diskv.\",\"---\",IF(Výsledky_MUŽI[[#This Row],[Výs. čas]]=\"Neúčasť\",\"---\",_xlfn.RANK.EQ(Výsledky_MUŽI[[#This Row],[Výs. čas]],Výsledky_MUŽI[Výs. čas],1)))))","v":"---"},null,null,null,null,{"$f":"IF(AND(ISBLANK(Výsledky_MUŽI[[#This Row],[PP]])),\"čas\",IF(Výsledky_MUŽI[[#This Row],[ĽP]]=\"D\",\"Diskv.\",IF(Výsledky_MUŽI[[#This Row],[PP]]=\"D\",\"Diskv.\",IF(Výsledky_MUŽI[[#This Row],[ĽP]]=\"n\",\"Neúčasť\",IF(Výsledky_MUŽI[[#This Row],[PP]]=\"n\",\"Neúčasť\",MAX(SUBSTITUTE(Výsledky_MUŽI[[#This Row],[ĽP]],\",\",\".\"),SUBSTITUTE(Výsledky_MUŽI[[#This Row],[PP]],\",\",\".\")))))))","v":"čas"},{"$f":"IF(Výsledky_MUŽI[[#This Row],[Por.]]=1,20,IF(Výsledky_MUŽI[[#This Row],[Por.]]=2,17,IF(Výsledky_MUŽI[[#This Row],[Por.]]=3,15,IF(Výsledky_MUŽI[[#This Row],[Por.]]=4,13,IF(Výsledky_MUŽI[[#This Row],[Por.]]=5,11,IF(Výsledky_MUŽI[[#This Row],[Por.]]=6,9,IF(Výsledky_MUŽI[[#This Row],[Por.]]=7,8,IF(Výsledky_MUŽI[[#This Row],[Por.]]=8,7,IF(Výsledky_MUŽI[[#This Row],[Por.]]=9,6,IF(Výsledky_MUŽI[[#This Row],[Por.]]=10,5,IF(Výsledky_MUŽI[[#This Row],[Por.]]=11,4,IF(Výsledky_MUŽI[[#This Row],[Por.]]=12,3,IF(Výsledky_MUŽI[[#This Row],[Výs. čas]]=99.99,1,IF(Výsledky_MUŽI[[#This Row],[Výs. čas]]=\"Diskv.\",1,IF(Výsledky_MUŽI[[#This Row],[Výs. čas]]=\"Neúčasť\",0,2)))))))))))))))","v":2},null,null,null,null,null,"N        --- neúčasť družstva"]
[{"$f":"IF(Výsledky_MUŽI[[#This Row],[Výs. čas]]=\"čas\",\"---\",IF(Výsledky_MUŽI[[#This Row],[Výs. čas]]=99.99,\"---\",IF(Výsledky_MUŽI[[#This Row],[Výs. čas]]=\"Diskv.\",\"---\",IF(Výsledky_MUŽI[[#This Row],[Výs. čas]]=\"Neúčasť\",\"---\",_xlfn.RANK.EQ(Výsledky_MUŽI[[#This Row],[Výs. čas]],Výsledky_MUŽI[Výs. čas],1)))))","v":"---"},null,null,null,null,{"$f":"IF(AND(ISBLANK(Výsledky_MUŽI[[#This Row],[PP]])),\"čas\",IF(Výsledky_MUŽI[[#This Row],[ĽP]]=\"D\",\"Diskv.\",IF(Výsledky_MUŽI[[#This Row],[PP]]=\"D\",\"Diskv.\",IF(Výsledky_MUŽI[[#This Row],[ĽP]]=\"n\",\"Neúčasť\",IF(Výsledky_MUŽI[[#This Row],[PP]]=\"n\",\"Neúčasť\",MAX(SUBSTITUTE(Výsledky_MUŽI[[#This Row],[ĽP]],\",\",\".\"),SUBSTITUTE(Výsledky_MUŽI[[#This Row],[PP]],\",\",\".\")))))))","v":"čas"},{"$f":"IF(Výsledky_MUŽI[[#This Row],[Por.]]=1,20,IF(Výsledky_MUŽI[[#This Row],[Por.]]=2,17,IF(Výsledky_MUŽI[[#This Row],[Por.]]=3,15,IF(Výsledky_MUŽI[[#This Row],[Por.]]=4,13,IF(Výsledky_MUŽI[[#This Row],[Por.]]=5,11,IF(Výsledky_MUŽI[[#This Row],[Por.]]=6,9,IF(Výsledky_MUŽI[[#This Row],[Por.]]=7,8,IF(Výsledky_MUŽI[[#This Row],[Por.]]=8,7,IF(Výsledky_MUŽI[[#This Row],[Por.]]=9,6,IF(Výsledky_MUŽI[[#This Row],[Por.]]=10,5,IF(Výsledky_MUŽI[[#This Row],[Por.]]=11,4,IF(Výsledky_MUŽI[[#This Row],[Por.]]=12,3,IF(Výsledky_MUŽI[[#This Row],[Výs. čas]]=99.99,1,IF(Výsledky_MUŽI[[#This Row],[Výs. čas]]=\"Diskv.\",1,IF(Výsledky_MUŽI[[#This Row],[Výs. čas]]=\"Neúčasť\",0,2)))))))))))))))","v":2},null,null,null,null,null,"Prestup"]
[{"$f":"IF(Výsledky_MUŽI[[#This Row],[Výs. čas]]=\"čas\",\"---\",IF(Výsledky_MUŽI[[#This Row],[Výs. čas]]=99.99,\"---\",IF(Výsledky_MUŽI[[#This Row],[Výs. čas]]=\"Diskv.\",\"---\",IF(Výsledky_MUŽI[[#This Row],[Výs. čas]]=\"Neúčasť\",\"---\",_xlfn.RANK.EQ(Výsledky_MUŽI[[#This Row],[Výs. čas]],Výsledky_MUŽI[Výs. čas],1)))))","v":"---"},null,null,null,null,{"$f":"IF(AND(ISBLANK(Výsledky_MUŽI[[#This Row],[PP]])),\"čas\",IF(Výsledky_MUŽI[[#This Row],[ĽP]]=\"D\",\"Diskv.\",IF(Výsledky_MUŽI[[#This Row],[PP]]=\"D\",\"Diskv.\",IF(Výsledky_MUŽI[[#This Row],[ĽP]]=\"n\",\"Neúčasť\",IF(Výsledky_MUŽI[[#This Row],[PP]]=\"n\",\"Neúčasť\",MAX(SUBSTITUTE(Výsledky_MUŽI[[#This Row],[ĽP]],\",\",\".\"),SUBSTITUTE(Výsledky_MUŽI[[#This Row],[PP]],\",\",\".\")))))))","v":"čas"},{"$f":"IF(Výsledky_MUŽI[[#This Row],[Por.]]=1,20,IF(Výsledky_MUŽI[[#This Row],[Por.]]=2,17,IF(Výsledky_MUŽI[[#This Row],[Por.]]=3,15,IF(Výsledky_MUŽI[[#This Row],[Por.]]=4,13,IF(Výsledky_MUŽI[[#This Row],[Por.]]=5,11,IF(Výsledky_MUŽI[[#This Row],[Por.]]=6,9,IF(Výsledky_MUŽI[[#This Row],[Por.]]=7,8,IF(Výsledky_MUŽI[[#This Row],[Por.]]=8,7,IF(Výsledky_MUŽI[[#This Row],[Por.]]=9,6,IF(Výsledky_MUŽI[[#This Row],[Por.]]=10,5,IF(Výsledky_MUŽI[[#This Row],[Por.]]=11,4,IF(Výsledky_MUŽI[[#This Row],[Por.]]=12,3,IF(Výsledky_MUŽI[[#This Row],[Výs. čas]]=99.99,1,IF(Výsledky_MUŽI[[#This Row],[Výs. čas]]=\"Diskv.\",1,IF(Výsledky_MUŽI[[#This Row],[Výs. čas]]=\"Neúčasť\",0,2)))))))))))))))","v":2},null,null,null,null,null,"X        --- ak malo družstvo prestup"]
[{"$f":"IF(Výsledky_MUŽI[[#This Row],[Výs. čas]]=\"čas\",\"---\",IF(Výsledky_MUŽI[[#This Row],[Výs. čas]]=99.99,\"---\",IF(Výsledky_MUŽI[[#This Row],[Výs. čas]]=\"Diskv.\",\"---\",IF(Výsledky_MUŽI[[#This Row],[Výs. čas]]=\"Neúčasť\",\"---\",_xlfn.RANK.EQ(Výsledky_MUŽI[[#This Row],[Výs. čas]],Výsledky_MUŽI[Výs. čas],1)))))","v":"---"},null,null,null,null,{"$f":"IF(AND(ISBLANK(Výsledky_MUŽI[[#This Row],[PP]])),\"čas\",IF(Výsledky_MUŽI[[#This Row],[ĽP]]=\"D\",\"Diskv.\",IF(Výsledky_MUŽI[[#This Row],[PP]]=\"D\",\"Diskv.\",IF(Výsledky_MUŽI[[#This Row],[ĽP]]=\"n\",\"Neúčasť\",IF(Výsledky_MUŽI[[#This Row],[PP]]=\"n\",\"Neúčasť\",MAX(SUBSTITUTE(Výsledky_MUŽI[[#This Row],[ĽP]],\",\",\".\"),SUBSTITUTE(Výsledky_MUŽI[[#This Row],[PP]],\",\",\".\")))))))","v":"čas"},{"$f":"IF(Výsledky_MUŽI[[#This Row],[Por.]]=1,20,IF(Výsledky_MUŽI[[#This Row],[Por.]]=2,17,IF(Výsledky_MUŽI[[#This Row],[Por.]]=3,15,IF(Výsledky_MUŽI[[#This Row],[Por.]]=4,13,IF(Výsledky_MUŽI[[#This Row],[Por.]]=5,11,IF(Výsledky_MUŽI[[#This Row],[Por.]]=6,9,IF(Výsledky_MUŽI[[#This Row],[Por.]]=7,8,IF(Výsledky_MUŽI[[#This Row],[Por.]]=8,7,IF(Výsledky_MUŽI[[#This Row],[Por.]]=9,6,IF(Výsledky_MUŽI[[#This Row],[Por.]]=10,5,IF(Výsledky_MUŽI[[#This Row],[Por.]]=11,4,IF(Výsledky_MUŽI[[#This Row],[Por.]]=12,3,IF(Výsledky_MUŽI[[#This Row],[Výs. čas]]=99.99,1,IF(Výsledky_MUŽI[[#This Row],[Výs. čas]]=\"Diskv.\",1,IF(Výsledky_MUŽI[[#This Row],[Výs. čas]]=\"Neúčasť\",0,2)))))))))))))))","v":2}]
[{"$f":"IF(Výsledky_MUŽI[[#This Row],[Výs. čas]]=\"čas\",\"---\",IF(Výsledky_MUŽI[[#This Row],[Výs. čas]]=99.99,\"---\",IF(Výsledky_MUŽI[[#This Row],[Výs. čas]]=\"Diskv.\",\"---\",IF(Výsledky_MUŽI[[#This Row],[Výs. čas]]=\"Neúčasť\",\"---\",_xlfn.RANK.EQ(Výsledky_MUŽI[[#This Row],[Výs. čas]],Výsledky_MUŽI[Výs. čas],1)))))","v":"---"},null,null,null,null,{"$f":"IF(AND(ISBLANK(Výsledky_MUŽI[[#This Row],[PP]])),\"čas\",IF(Výsledky_MUŽI[[#This Row],[ĽP]]=\"D\",\"Diskv.\",IF(Výsledky_MUŽI[[#This Row],[PP]]=\"D\",\"Diskv.\",IF(Výsledky_MUŽI[[#This Row],[ĽP]]=\"n\",\"Neúčasť\",IF(Výsledky_MUŽI[[#This Row],[PP]]=\"n\",\"Neúčasť\",MAX(SUBSTITUTE(Výsledky_MUŽI[[#This Row],[ĽP]],\",\",\".\"),SUBSTITUTE(Výsledky_MUŽI[[#This Row],[PP]],\",\",\".\")))))))","v":"čas"},{"$f":"IF(Výsledky_MUŽI[[#This Row],[Por.]]=1,20,IF(Výsledky_MUŽI[[#This Row],[Por.]]=2,17,IF(Výsledky_MUŽI[[#This Row],[Por.]]=3,15,IF(Výsledky_MUŽI[[#This Row],[Por.]]=4,13,IF(Výsledky_MUŽI[[#This Row],[Por.]]=5,11,IF(Výsledky_MUŽI[[#This Row],[Por.]]=6,9,IF(Výsledky_MUŽI[[#This Row],[Por.]]=7,8,IF(Výsledky_MUŽI[[#This Row],[Por.]]=8,7,IF(Výsledky_MUŽI[[#This Row],[Por.]]=9,6,IF(Výsledky_MUŽI[[#This Row],[Por.]]=10,5,IF(Výsledky_MUŽI[[#This Row],[Por.]]=11,4,IF(Výsledky_MUŽI[[#This Row],[Por.]]=12,3,IF(Výsledky_MUŽI[[#This Row],[Výs. čas]]=99.99,1,IF(Výsledky_MUŽI[[#This Row],[Výs. čas]]=\"Diskv.\",1,IF(Výsledky_MUŽI[[#This Row],[Výs. čas]]=\"Neúčasť\",0,2)))))))))))))))","v":2},null,null,null,null,null,"TIP: Ak potrebujete do tabuľky pridať nový riadok, presuňte sa do stĺpca \"H\" posledného riadku a stačte klávesu TAB."]
[{"$f":"IF(Výsledky_MUŽI[[#This Row],[Výs. čas]]=\"čas\",\"---\",IF(Výsledky_MUŽI[[#This Row],[Výs. čas]]=99.99,\"---\",IF(Výsledky_MUŽI[[#This Row],[Výs. čas]]=\"Diskv.\",\"---\",IF(Výsledky_MUŽI[[#This Row],[Výs. čas]]=\"Neúčasť\",\"---\",_xlfn.RANK.EQ(Výsledky_MUŽI[[#This Row],[Výs. čas]],Výsledky_MUŽI[Výs. čas],1)))))","v":"---"},null,null,null,null,{"$f":"IF(AND(ISBLANK(Výsledky_MUŽI[[#This Row],[PP]])),\"čas\",IF(Výsledky_MUŽI[[#This Row],[ĽP]]=\"D\",\"Diskv.\",IF(Výsledky_MUŽI[[#This Row],[PP]]=\"D\",\"Diskv.\",IF(Výsledky_MUŽI[[#This Row],[ĽP]]=\"n\",\"Neúčasť\",IF(Výsledky_MUŽI[[#This Row],[PP]]=\"n\",\"Neúčasť\",MAX(SUBSTITUTE(Výsledky_MUŽI[[#This Row],[ĽP]],\",\",\".\"),SUBSTITUTE(Výsledky_MUŽI[[#This Row],[PP]],\",\",\".\")))))))","v":"čas"},{"$f":"IF(Výsledky_MUŽI[[#This Row],[Por.]]=1,20,IF(Výsledky_MUŽI[[#This Row],[Por.]]=2,17,IF(Výsledky_MUŽI[[#This Row],[Por.]]=3,15,IF(Výsledky_MUŽI[[#This Row],[Por.]]=4,13,IF(Výsledky_MUŽI[[#This Row],[Por.]]=5,11,IF(Výsledky_MUŽI[[#This Row],[Por.]]=6,9,IF(Výsledky_MUŽI[[#This Row],[Por.]]=7,8,IF(Výsledky_MUŽI[[#This Row],[Por.]]=8,7,IF(Výsledky_MUŽI[[#This Row],[Por.]]=9,6,IF(Výsledky_MUŽI[[#This Row],[Por.]]=10,5,IF(Výsledky_MUŽI[[#This Row],[Por.]]=11,4,IF(Výsledky_MUŽI[[#This Row],[Por.]]=12,3,IF(Výsledky_MUŽI[[#This Row],[Výs. čas]]=99.99,1,IF(Výsledky_MUŽI[[#This Row],[Výs. čas]]=\"Diskv.\",1,IF(Výsledky_MUŽI[[#This Row],[Výs. čas]]=\"Neúčasť\",0,2)))))))))))))))","v":2}]
[{"$f":"IF(Výsledky_MUŽI[[#This Row],[Výs. čas]]=\"čas\",\"---\",IF(Výsledky_MUŽI[[#This Row],[Výs. čas]]=99.99,\"---\",IF(Výsledky_MUŽI[[#This Row],[Výs. čas]]=\"Diskv.\",\"---\",IF(Výsledky_MUŽI[[#This Row],[Výs. čas]]=\"Neúčasť\",\"---\",_xlfn.RANK.EQ(Výsledky_MUŽI[[#This Row],[Výs. čas]],Výsledky_MUŽI[Výs. čas],1)))))","v":"---"},null,null,null,null,{"$f":"IF(AND(ISBLANK(Výsledky_MUŽI[[#This Row],[PP]])),\"čas\",IF(Výsledky_MUŽI[[#This Row],[ĽP]]=\"D\",\"Diskv.\",IF(Výsledky_MUŽI[[#This Row],[PP]]=\"D\",\"Diskv.\",IF(Výsledky_MUŽI[[#This Row],[ĽP]]=\"n\",\"Neúčasť\",IF(Výsledky_MUŽI[[#This Row],[PP]]=\"n\",\"Neúčasť\",MAX(SUBSTITUTE(Výsledky_MUŽI[[#This Row],[ĽP]],\",\",\".\"),SUBSTITUTE(Výsledky_MUŽI[[#This Row],[PP]],\",\",\".\")))))))","v":"čas"},{"$f":"IF(Výsledky_MUŽI[[#This Row],[Por.]]=1,20,IF(Výsledky_MUŽI[[#This Row],[Por.]]=2,17,IF(Výsledky_MUŽI[[#This Row],[Por.]]=3,15,IF(Výsledky_MUŽI[[#This Row],[Por.]]=4,13,IF(Výsledky_MUŽI[[#This Row],[Por.]]=5,11,IF(Výsledky_MUŽI[[#This Row],[Por.]]=6,9,IF(Výsledky_MUŽI[[#This Row],[Por.]]=7,8,IF(Výsledky_MUŽI[[#This Row],[Por.]]=8,7,IF(Výsledky_MUŽI[[#This Row],[Por.]]=9,6,IF(Výsledky_MUŽI[[#This Row],[Por.]]=10,5,IF(Výsledky_MUŽI[[#This Row],[Por.]]=11,4,IF(Výsledky_MUŽI[[#This Row],[Por.]]=12,3,IF(Výsledky_MUŽI[[#This Row],[Výs. čas]]=99.99,1,IF(Výsledky_MUŽI[[#This Row],[Výs. čas]]=\"Diskv.\",1,IF(Výsledky_MUŽI[[#This Row],[Výs. čas]]=\"Neúčasť\",0,2)))))))))))))))","v":2}]
[{"$f":"IF(Výsledky_MUŽI[[#This Row],[Výs. čas]]=\"čas\",\"---\",IF(Výsledky_MUŽI[[#This Row],[Výs. čas]]=99.99,\"---\",IF(Výsledky_MUŽI[[#This Row],[Výs. čas]]=\"Diskv.\",\"---\",IF(Výsledky_MUŽI[[#This Row],[Výs. čas]]=\"Neúčasť\",\"---\",_xlfn.RANK.EQ(Výsledky_MUŽI[[#This Row],[Výs. čas]],Výsledky_MUŽI[Výs. čas],1)))))","v":"---"},null,null,null,null,{"$f":"IF(AND(ISBLANK(Výsledky_MUŽI[[#This Row],[PP]])),\"čas\",IF(Výsledky_MUŽI[[#This Row],[ĽP]]=\"D\",\"Diskv.\",IF(Výsledky_MUŽI[[#This Row],[PP]]=\"D\",\"Diskv.\",IF(Výsledky_MUŽI[[#This Row],[ĽP]]=\"n\",\"Neúčasť\",IF(Výsledky_MUŽI[[#This Row],[PP]]=\"n\",\"Neúčasť\",MAX(SUBSTITUTE(Výsledky_MUŽI[[#This Row],[ĽP]],\",\",\".\"),SUBSTITUTE(Výsledky_MUŽI[[#This Row],[PP]],\",\",\".\")))))))","v":"čas"},{"$f":"IF(Výsledky_MUŽI[[#This Row],[Por.]]=1,20,IF(Výsledky_MUŽI[[#This Row],[Por.]]=2,17,IF(Výsledky_MUŽI[[#This Row],[Por.]]=3,15,IF(Výsledky_MUŽI[[#This Row],[Por.]]=4,13,IF(Výsledky_MUŽI[[#This Row],[Por.]]=5,11,IF(Výsledky_MUŽI[[#This Row],[Por.]]=6,9,IF(Výsledky_MUŽI[[#This Row],[Por.]]=7,8,IF(Výsledky_MUŽI[[#This Row],[Por.]]=8,7,IF(Výsledky_MUŽI[[#This Row],[Por.]]=9,6,IF(Výsledky_MUŽI[[#This Row],[Por.]]=10,5,IF(Výsledky_MUŽI[[#This Row],[Por.]]=11,4,IF(Výsledky_MUŽI[[#This Row],[Por.]]=12,3,IF(Výsledky_MUŽI[[#This Row],[Výs. čas]]=99.99,1,IF(Výsledky_MUŽI[[#This Row],[Výs. čas]]=\"Diskv.\",1,IF(Výsledky_MUŽI[[#This Row],[Výs. čas]]=\"Neúčasť\",0,2)))))))))))))))","v":2}]
[{"$f":"IF(Výsledky_MUŽI[[#This Row],[Výs. čas]]=\"čas\",\"---\",IF(Výsledky_MUŽI[[#This Row],[Výs. čas]]=99.99,\"---\",IF(Výsledky_MUŽI[[#This Row],[Výs. čas]]=\"Diskv.\",\"---\",IF(Výsledky_MUŽI[[#This Row],[Výs. čas]]=\"Neúčasť\",\"---\",_xlfn.RANK.EQ(Výsledky_MUŽI[[#This Row],[Výs. čas]],Výsledky_MUŽI[Výs. čas],1)))))","v":{"$error":"#VALUE!"}},"Chrabrany",null,null,null,"D",{"$f":"IF(Výsledky_MUŽI[[#This Row],[Por.]]=1,20,IF(Výsledky_MUŽI[[#This Row],[Por.]]=2,17,IF(Výsledky_MUŽI[[#This Row],[Por.]]=3,15,IF(Výsledky_MUŽI[[#This Row],[Por.]]=4,13,IF(Výsledky_MUŽI[[#This Row],[Por.]]=5,11,IF(Výsledky_MUŽI[[#This Row],[Por.]]=6,9,IF(Výsledky_MUŽI[[#This Row],[Por.]]=7,8,IF(Výsledky_MUŽI[[#This Row],[Por.]]=8,7,IF(Výsledky_MUŽI[[#This Row],[Por.]]=9,6,IF(Výsledky_MUŽI[[#This Row],[Por.]]=10,5,IF(Výsledky_MUŽI[[#This Row],[Por.]]=11,4,IF(Výsledky_MUŽI[[#This Row],[Por.]]=12,3,IF(Výsledky_MUŽI[[#This Row],[Výs. čas]]=99.99,1,IF(Výsledky_MUŽI[[#This Row],[Výs. čas]]=\"Diskv.\",1,IF(Výsledky_MUŽI[[#This Row],[Výs. čas]]=\"Neúčasť\",0,2)))))))))))))))","v":{"$error":"#VALUE!"}}]
[{"$f":"IF(Výsledky_MUŽI[[#This Row],[Výs. čas]]=\"čas\",\"---\",IF(Výsledky_MUŽI[[#This Row],[Výs. čas]]=99.99,\"---\",IF(Výsledky_MUŽI[[#This Row],[Výs. čas]]=\"Diskv.\",\"---\",IF(Výsledky_MUŽI[[#This Row],[Výs. čas]]=\"Neúčasť\",\"---\",_xlfn.RANK.EQ(Výsledky_MUŽI[[#This Row],[Výs. čas]],Výsledky_MUŽI[Výs. čas],1)))))","v":{"$error":"#VALUE!"}},"Lehota pod Vtáčnikom",null,null,null,"D",{"$f":"IF(Výsledky_MUŽI[[#This Row],[Por.]]=1,20,IF(Výsledky_MUŽI[[#This Row],[Por.]]=2,17,IF(Výsledky_MUŽI[[#This Row],[Por.]]=3,15,IF(Výsledky_MUŽI[[#This Row],[Por.]]=4,13,IF(Výsledky_MUŽI[[#This Row],[Por.]]=5,11,IF(Výsledky_MUŽI[[#This Row],[Por.]]=6,9,IF(Výsledky_MUŽI[[#This Row],[Por.]]=7,8,IF(Výsledky_MUŽI[[#This Row],[Por.]]=8,7,IF(Výsledky_MUŽI[[#This Row],[Por.]]=9,6,IF(Výsledky_MUŽI[[#This Row],[Por.]]=10,5,IF(Výsledky_MUŽI[[#This Row],[Por.]]=11,4,IF(Výsledky_MUŽI[[#This Row],[Por.]]=12,3,IF(Výsledky_MUŽI[[#This Row],[Výs. čas]]=99.99,1,IF(Výsledky_MUŽI[[#This Row],[Výs. čas]]=\"Diskv.\",1,IF(Výsledky_MUŽI[[#This Row],[Výs. čas]]=\"Neúčasť\",0,2)))))))))))))))","v":{"$error":"#VALUE!"}}]
[{"$f":"IF(Výsledky_MUŽI[[#This Row],[Výs. čas]]=\"čas\",\"---\",IF(Výsledky_MUŽI[[#This Row],[Výs. čas]]=99.99,\"---\",IF(Výsledky_MUŽI[[#This Row],[Výs. čas]]=\"Diskv.\",\"---\",IF(Výsledky_MUŽI[[#This Row],[Výs. čas]]=\"Neúčasť\",\"---\",_xlfn.RANK.EQ(Výsledky_MUŽI[[#This Row],[Výs. čas]],Výsledky_MUŽI[Výs. čas],1)))))","v":{"$error":"#VALUE!"}},"Svinná",null,null,null,"D",{"$f":"IF(Výsledky_MUŽI[[#This Row],[Por.]]=1,20,IF(Výsledky_MUŽI[[#This Row],[Por.]]=2,17,IF(Výsledky_MUŽI[[#This Row],[Por.]]=3,15,IF(Výsledky_MUŽI[[#This Row],[Por.]]=4,13,IF(Výsledky_MUŽI[[#This Row],[Por.]]=5,11,IF(Výsledky_MUŽI[[#This Row],[Por.]]=6,9,IF(Výsledky_MUŽI[[#This Row],[Por.]]=7,8,IF(Výsledky_MUŽI[[#This Row],[Por.]]=8,7,IF(Výsledky_MUŽI[[#This Row],[Por.]]=9,6,IF(Výsledky_MUŽI[[#This Row],[Por.]]=10,5,IF(Výsledky_MUŽI[[#This Row],[Por.]]=11,4,IF(Výsledky_MUŽI[[#This Row],[Por.]]=12,3,IF(Výsledky_MUŽI[[#This Row],[Výs. čas]]=99.99,1,IF(Výsledky_MUŽI[[#This Row],[Výs. čas]]=\"Diskv.\",1,IF(Výsledky_MUŽI[[#This Row],[Výs. čas]]=\"Neúčasť\",0,2)))))))))))))))","v":{"$error":"#VALUE!"}}]
[{"$f":"IF(Výsledky_MUŽI[[#This Row],[Výs. čas]]=\"čas\",\"---\",IF(Výsledky_MUŽI[[#This Row],[Výs. čas]]=99.99,\"---\",IF(Výsledky_MUŽI[[#This Row],[Výs. čas]]=\"Diskv.\",\"---\",IF(Výsledky_MUŽI[[#This Row],[Výs. čas]]=\"Neúčasť\",\"---\",_xlfn.RANK.EQ(Výsledky_MUŽI[[#This Row],[Výs. čas]],Výsledky_MUŽI[Výs. čas],1)))))","v":{"$error":"#VALUE!"}},null,null,null,13.89,{"$f":"IF(AND(ISBLANK(Výsledky_MUŽI[[#This Row],[PP]])),\"čas\",IF(Výsledky_MUŽI[[#This Row],[ĽP]]=\"D\",\"Diskv.\",IF(Výsledky_MUŽI[[#This Row],[PP]]=\"D\",\"Diskv.\",IF(Výsledky_MUŽI[[#This Row],[ĽP]]=\"n\",\"Neúčasť\",IF(Výsledky_MUŽI[[#This Row],[PP]]=\"n\",\"Neúčasť\",MAX(SUBSTITUTE(Výsledky_MUŽI[[#This Row],[ĽP]],\",\",\".\"),SUBSTITUTE(Výsledky_MUŽI[[#This Row],[PP]],\",\",\".\")))))))","v":{"$error":"#VALUE!"}},{"$f":"IF(Výsledky_MUŽI[[#This Row],[Por.]]=1,20,IF(Výsledky_MUŽI[[#This Row],[Por.]]=2,17,IF(Výsledky_MUŽI[[#This Row],[Por.]]=3,15,IF(Výsledky_MUŽI[[#This Row],[Por.]]=4,13,IF(Výsledky_MUŽI[[#This Row],[Por.]]=5,11,IF(Výsledky_MUŽI[[#This Row],[Por.]]=6,9,IF(Výsledky_MUŽI[[#This Row],[Por.]]=7,8,IF(Výsledky_MUŽI[[#This Row],[Por.]]=8,7,IF(Výsledky_MUŽI[[#This Row],[Por.]]=9,6,IF(Výsledky_MUŽI[[#This Row],[Por.]]=10,5,IF(Výsledky_MUŽI[[#This Row],[Por.]]=11,4,IF(Výsledky_MUŽI[[#This Row],[Por.]]=12,3,IF(Výsledky_MUŽI[[#This Row],[Výs. čas]]=99.99,1,IF(Výsledky_MUŽI[[#This Row],[Výs. čas]]=\"Diskv.\",1,IF(Výsledky_MUŽI[[#This Row],[Výs. čas]]=\"Neúčasť\",0,2)))))))))))))))","v":{"$error":"#VALUE!"}}]
[null,null,null,null,null,null,"Prestupov:",{"$f":"COUNTIF(Výsledky_MUŽI[Prestup],\"X\")","v":0}]

{"sheet":"Výsledky ŽENY","index":2,"n_rows":22,"n_cols":13,"rows_kept":22,"cut":false,"hidden":false,"merged":[[0,0,0,7],[0,12,1,12],[1,0,1,7],[21,12,22,12]]}
[{"$f":"'Vstupné údaje'!$B$4","v":"Memoriál baróna Friesenhofa"},null,null,null,null,null,null,null,null,null,null,null,"Návod na plnohodnotnú prácu s výsledkami"]
[{"$f":"CONCATENATE(\"Výsledky \",'Vstupné údaje'!$B$7,\". kola SMHL \",TEXT('Vstupné údaje'!$B$5,\"yyyy\"),\" v kategórii ŽENY, ktoré sa konalo \",TEXT('Vstupné údaje'!$B$5,\"dd.mm.yyyy\"),\" o \",TEXT('Vstupné údaje'!$B$6,\"hh:mm\"))","v":"Výsledky 1. kola SMHL 2022 v kategórii ŽENY, ktoré sa konalo 04.06.2022 o 14:00"}]
[]
["Por.","Družstvo","Okres","ĽP","PP","Výs. čas","Body","Prestup",null,null,null,null,"Pri zadávaní výsledkov sa vypĺňajú nasledujúce stĺpce (zvyšné sa vypočítajú automaticky):"]
[{"$f":"IF(Výsledky_ŽENY[[#This Row],[Výs. čas]]=\"čas\",\"---\",IF(Výsledky_ŽENY[[#This Row],[Výs. čas]]=99.99,\"---\",IF(Výsledky_ŽENY[[#This Row],[Výs. čas]]=\"Diskv.\",\"---\",IF(Výsledky_ŽENY[[#This Row],[Výs. čas]]=\"Neúčasť\",\"---\",_xlfn.RANK.EQ(Výsledky_ŽENY[[#This Row],[Výs. čas]],Výsledky_ŽENY[Výs. čas],1)))))","v":1},"Zlatníky",null,16.22,16.14,16.22,{"$f":"IF(Výsledky_ŽENY[[#This Row],[Por.]]=1,10,IF(Výsledky_ŽENY[[#This Row],[Por.]]=2,8,IF(Výsledky_ŽENY[[#This Row],[Por.]]=3,6,IF(Výsledky_ŽENY[[#This Row],[Por.]]=4,4,IF(Výsledky_ŽENY[[#This Row],[Por.]]=5,2,IF(Výsledky_ŽENY[[#This Row],[Výs. čas]]=99.99,1,IF(Výsledky_ŽENY[[#This Row],[Výs. čas]]=\"Diskv.\",1,IF(Výsledky_ŽENY[[#This Row],[Výs. čas]]=\"Neúčasť\",0,2))))))))","v":10},null,null,null,null,null,"--- družstvo"]
[{"$f":"IF(Výsledky_ŽENY[[#This Row],[Výs. čas]]=\"čas\",\"---\",IF(Výsledky_ŽENY[[#This Row],[Výs. čas]]=99.99,\"---\",IF(Výsledky_ŽENY[[#This Row],[Výs. čas]]=\"Diskv.\",\"---\",IF(Výsledky_ŽENY[[#This Row],[Výs. čas]]=\"Neúčasť\",\"---\",_xlfn.RANK.EQ(Výsledky_ŽENY[[#This Row],[Výs. čas]],Výsledky_ŽENY[Výs. čas],1)))))","v":2},"Dulov",null,17.260000000000002,17.07,17.260000000000002,{"$f":"IF(Výsledky_ŽENY[[#This Row],[Por.]]=1,10,IF(Výsledky_ŽENY[[#This Row],[Por.]]=2,8,IF(Výsledky_ŽENY[[#This Row],[Por.]]=3,6,IF(Výsledky_ŽENY[[#This Row],[Por.]]=4,4,IF(Výsledky_ŽENY[[#This Row],[Por.]]=5,2,IF(Výsledky_ŽENY[[#This Row],[Výs. čas]]=99.99,1,IF(Výsledky_ŽENY[[#This Row],[Výs. čas]]=\"Diskv.\",1,IF(Výsledky_ŽENY[[#This Row],[Výs. čas]]=\"Neúčasť\",0,2))))))))","v":8},null,null,null,null,null,"--- okres"]
[{"$f":"IF(Výsledky_ŽENY[[#This Row],[Výs. čas]]=\"čas\",\"---\",IF(Výsledky_ŽENY[[#This Row],[Výs. čas]]=99.99,\"---\",IF(Výsledky_ŽENY[[#This Row],[Výs. čas]]=\"Diskv.\",\"---\",IF(Výsledky_ŽENY[[#This Row],[Výs. čas]]=\"Neúčasť\",\"---\",_xlfn.RANK.EQ(Výsledky_ŽENY[[#This Row],[Výs. čas]],Výsledky_ŽENY[Výs. čas],1)))))","v":3},"Ihrište",null,18.09,17.670000000000002,18.09,{"$f":"IF(Výsledky_ŽENY[[#This Row],[Por.]]=1,10,IF(Výsledky_ŽENY[[#This Row],[Por.]]=2,8,IF(Výsledky_ŽENY[[#This Row],[Por.]]=3,6,IF(Výsledky_ŽENY[[#This Row],[Por.]]=4,4,IF(Výsledky_ŽENY[[#This Row],[Por.]]=5,2,IF(Výsledky_ŽENY[[#This Row],[Výs. čas]]=99.99,1,IF(Výsledky_ŽENY[[#This Row],[Výs. čas]]=\"Diskv.\",1,IF(Výsledky_ŽENY[[#This Row],[Výs. čas]]=\"Neúčasť\",0,2))))))))","v":6},"x",null,null,null,null,"--- ľavý prúd (ĽP)"]
[{"$f":"IF(Výsledky_ŽENY[[#This Row],[Výs. čas]]=\"čas\",\"---\",IF(Výsledky_ŽENY[[#This Row],[Výs. čas]]=99.99,\"---\",IF(Výsledky_ŽENY[[#This Row],[Výs. čas]]=\"Diskv.\",\"---\",IF(Výsledky_ŽENY[[#This Row],[Výs. čas]]=\"Neúčasť\",\"---\",_xlfn.RANK.EQ(Výsledky_ŽENY[[#This Row],[Výs. čas]],Výsledky_ŽENY[Výs. čas],1)))))","v":4},"Kocurany",null,18.739999999999998,19.899999999999999,19.899999999999999,{"$f":"IF(Výsledky_ŽENY[[#This Row],[Por.]]=1,10,IF(Výsledky_ŽENY[[#This Row],[Por.]]=2,8,IF(Výsledky_ŽENY[[#This Row],[Por.]]=3,6,IF(Výsledky_ŽENY[[#This Row],[Por.]]=4,4,IF(Výsledky_ŽENY[[#This Row],[Por.]]=5,2,IF(Výsledky_ŽENY[[#This Row],[Výs. čas]]=99.99,1,IF(Výsledky_ŽENY[[#This Row],[Výs. čas]]=\"Diskv.\",1,IF(Výsledky_ŽENY[[#This Row],[Výs. čas]]=\"Neúčasť\",0,2))))))))","v":4},"x",null,null,null,null,"--- pravý prúd (PP)"]
[{"$f":"IF(Výsledky_ŽENY[[#This Row],[Výs. čas]]=\"čas\",\"---\",IF(Výsledky_ŽENY[[#This Row],[Výs. čas]]=99.99,\"---\",IF(Výsledky_ŽENY[[#This Row],[Výs. čas]]=\"Diskv.\",\"---\",IF(Výsledky_ŽENY[[#This Row],[Výs. čas]]=\"Neúčasť\",\"---\",_xlfn.RANK.EQ(Výsledky_ŽENY[[#This Row],[Výs. čas]],Výsledky_ŽENY[Výs. čas],1)))))","v":5},"Nedašova Lhota",null,20.399999999999999,16.61,20.399999999999999,{"$f":"IF(Výsledky_ŽENY[[#This Row],[Por.]]=1,10,IF(Výsledky_ŽENY[[#This Row],[Por.]]=2,8,IF(Výsledky_ŽENY[[#This Row],[Por.]]=3,6,IF(Výsledky_ŽENY[[#This Row],[Por.]]=4,4,IF(Výsledky_ŽENY[[#This Row],[Por.]]=5,2,IF(Výsledky_ŽENY[[#This Row],[Výs. čas]]=99.99,1,IF(Výsledky_ŽENY[[#This Row],[Výs. čas]]=\"Diskv.\",1,IF(Výsledky_ŽENY[[#This Row],[Výs. čas]]=\"Neúčasť\",0,2))))))))","v":2},null,null,null,null,null,"--- prestup"]
[{"$f":"IF(Výsledky_ŽENY[[#This Row],[Výs. čas]]=\"čas\",\"---\",IF(Výsledky_ŽENY[[#This Row],[Výs. čas]]=99.99,\"---\",IF(Výsledky_ŽENY[[#This Row],[Výs. čas]]=\"Diskv.\",\"---\",IF(Výsledky_ŽENY[[#This Row],[Výs. čas]]=\"Neúčasť\",\"---\",_xlfn.RANK.EQ(Výsledky_ŽENY[[#This Row],[Výs. čas]],Výsledky_ŽENY[Výs. čas],1)))))","v":6},"Rybany",null,21.17,20.440000000000001,21.17,{"$f":"IF(Výsledky_ŽENY[[#This Row],[Por.]]=1,10,IF(Výsledky_ŽENY[[#This Row],[Por.]]=2,8,IF(Výsledky_ŽENY[[#This Row],[Por.]]=3,6,IF(Výsledky_ŽENY[[#This Row],[Por.]]=4,4,IF(Výsledky_ŽENY[[#This Row],[Por.]]=5,2,IF(Výsledky_ŽENY[[#This Row],[Výs. čas]]=99.99,1,IF(Výsledky_ŽENY[[#This Row],[Výs. čas]]=\"Diskv.\",1,IF(Výsledky_ŽENY[[#This Row],[Výs. čas]]=\"Neúčasť\",0,2))))))))","v":2},"x"]
[{"$f":"IF(Výsledky_ŽENY[[#This Row],[Výs. čas]]=\"čas\",\"---\",IF(Výsledky_ŽENY[[#This Row],[Výs. čas]]=99.99,\"---\",IF(Výsledky_ŽENY[[#This Row],[Výs. čas]]=\"Diskv.\",\"---\",IF(Výsledky_ŽENY[[#This Row],[Výs. čas]]=\"Neúčasť\",\"---\",_xlfn.RANK.EQ(Výsledky_ŽENY[[#This Row],[Výs. čas]],Výsledky_ŽENY[Výs. čas],1)))))","v":7},"Nosice - Žabky \"B\"",null,23.88,22.74,23.88,{"$f":"IF(Výsledky_ŽENY[[#This Row],[Por.]]=1,10,IF(Výsledky_ŽENY[[#This Row],[Por.]]=2,8,IF(Výsledky_ŽENY[[#This Row],[Por.]]=3,6,IF(Výsledky_ŽENY[[#This Row],[Por.]]=4,4,IF(Výsledky_ŽENY[[#This Row],[Por.]]=5,2,IF(Výsledky_ŽENY[[#This Row],[Výs. čas]]=99.99,1,IF(Výsledky_ŽENY[[#This Row],[Výs. čas]]=\"Diskv.\",1,IF(Výsledky_ŽENY[[#This Row],[Výs. čas]]=\"Neúčasť\",0,2))))))))","v":2},null,null,null,null,null,"Dovolený formát zadávaných údajov:"]
[{"$f":"IF(Výsledky_ŽENY[[#This Row],[Výs. čas]]=\"čas\",\"---\",IF(Výsledky_ŽENY[[#This Row],[Výs. čas]]=99.99,\"---\",IF(Výsledky_ŽENY[[#This Row],[Výs. čas]]=\"Diskv.\",\"---\",IF(Výsledky_ŽENY[[#This Row],[Výs. čas]]=\"Neúčasť\",\"---\",_xlfn.RANK.EQ(Výsledky_ŽENY[[#This Row],[Výs. čas]],Výsledky_ŽENY[Výs. čas],1)))))","v":8},"Poruba",null,38.159999999999997,37.47,38.159999999999997,{"$f":"IF(Výsledky_ŽENY[[#This Row],[Por.]]=1,10,IF(Výsledky_ŽENY[[#This Row],[Por.]]=2,8,IF(Výsledky_ŽENY[[#This Row],[Por.]]=3,6,IF(Výsledky_ŽENY[[#This Row],[Por.]]=4,4,IF(Výsledky_ŽENY[[#This Row],[Por.]]=5,2,IF(Výsledky_ŽENY[[#This Row],[Výs. čas]]=99.99,1,IF(Výsledky_ŽENY[[#This Row],[Výs. čas]]=\"Diskv.\",1,IF(Výsledky_ŽENY[[#This Row],[Výs. čas]]=\"Neúčasť\",0,2))))))))","v":2},null,null,null,null,null,"Družstvo, okres"]
[{"$f":"IF(Výsledky_ŽENY[[#This Row],[Výs. čas]]=\"čas\",\"---\",IF(Výsledky_ŽENY[[#This Row],[Výs. čas]]=99.99,\"---\",IF(Výsledky_ŽENY[[#This Row],[Výs. čas]]=\"Diskv.\",\"---\",IF(Výsledky_ŽENY[[#This Row],[Výs. čas]]=\"Neúčasť\",\"---\",_xlfn.RANK.EQ(Výsledky_ŽENY[[#This Row],[Výs. čas]],Výsledky_ŽENY[Výs. čas],1)))))","v":"---"},null,null,null,null,{"$f":"IF(AND(ISBLANK(Výsledky_ŽENY[[#This Row],[PP]])),\"čas\",IF(Výsledky_ŽENY[[#This Row],[ĽP]]=\"D\",\"Diskv.\",IF(Výsledky_ŽENY[[#This Row],[PP]]=\"D\",\"Diskv.\",IF(Výsledky_ŽENY[[#This Row],[ĽP]]=\"n\",\"Neúčasť\",IF(Výsledky_ŽENY[[#This Row],[PP]]=\"n\",\"Neúčasť\",MAX(SUBSTITUTE(Výsledky_ŽENY[[#This Row],[ĽP]],\",\",\".\"),SUBSTITUTE(Výsledky_ŽENY[[#This Row],[PP]],\",\",\".\")))))))","v":"čas"},{"$f":"IF(Výsledky_ŽENY[[#This Row],[Por.]]=1,10,IF(Výsledky_ŽENY[[#This Row],[Por.]]=2,8,IF(Výsledky_ŽENY[[#This Row],[Por.]]=3,6,IF(Výsledky_ŽENY[[#This Row],[Por.]]=4,4,IF(Výsledky_ŽENY[[#This Row],[Por.]]=5,2,IF(Výsledky_ŽENY[[#This Row],[Výs. čas]]=99.99,1,IF(Výsledky_ŽENY[[#This Row],[Výs. čas]]=\"Diskv.\",1,IF(Výsledky_ŽENY[[#This Row],[Výs. čas]]=\"Neúčasť\",0,2))))))))","v":2},null,null,null,null,null,"--- ľubovoľný text"]
[{"$f":"IF(Výsledky_ŽENY[[#This Row],[Výs. čas]]=\"čas\",\"---\",IF(Výsledky_ŽENY[[#This Row],[Výs. čas]]=99.99,\"---\",IF(Výsledky_ŽENY[[#This Row],[Výs. čas]]=\"Diskv.\",\"---\",IF(Výsledky_ŽENY[[#This Row],[Výs. čas]]=\"Neúčasť\",\"---\",_xlfn.RANK.EQ(Výsledky_ŽENY[[#This Row],[Výs. čas]],Výsledky_ŽENY[Výs. čas],1)))))","v":"---"},null,null,null,null,{"$f":"IF(AND(ISBLANK(Výsledky_ŽENY[[#This Row],[PP]])),\"čas\",IF(Výsledky_ŽENY[[#This Row],[ĽP]]=\"D\",\"Diskv.\",IF(Výsledky_ŽENY[[#This Row],[PP]]=\"D\",\"Diskv.\",IF(Výsledky_ŽENY[[#This Row],[ĽP]]=\"n\",\"Neúčasť\",IF(Výsledky_ŽENY[[#This Row],[PP]]=\"n\",\"Neúčasť\",MAX(SUBSTITUTE(Výsledky_ŽENY[[#This Row],[ĽP]],\",\",\".\"),SUBSTITUTE(Výsledky_ŽENY[[#This Row],[PP]],\",\",\".\")))))))","v":"čas"},{"$f":"IF(Výsledky_ŽENY[[#This Row],[Por.]]=1,10,IF(Výsledky_ŽENY[[#This Row],[Por.]]=2,8,IF(Výsledky_ŽENY[[#This Row],[Por.]]=3,6,IF(Výsledky_ŽENY[[#This Row],[Por.]]=4,4,IF(Výsledky_ŽENY[[#This Row],[Por.]]=5,2,IF(Výsledky_ŽENY[[#This Row],[Výs. čas]]=99.99,1,IF(Výsledky_ŽENY[[#This Row],[Výs. čas]]=\"Diskv.\",1,IF(Výsledky_ŽENY[[#This Row],[Výs. čas]]=\"Neúčasť\",0,2))))))))","v":2},null,null,null,null,null,"Ľavý/pravý prúd"]
[null,null,null,null,null,null,"Prestupov:",{"$f":"COUNTIF(Výsledky_ŽENY[Prestup],\"X\")","v":3},null,null,null,null,"14.00 --- dokončený pokus"]
[null,null,null,null,null,null,null,null,null,null,null,null,"99.99 --- nedokončený pokus"]
[null,null,null,null,null,null,null,null,null,null,null,null,"D        --- diskvalifikácia družstva"]
[null,null,null,null,null,null,null,null,null,null,null,null,"N        --- neúčasť družstva"]
[null,null,null,null,null,null,null,null,null,null,null,null,"Prestup"]
[null,null,null,null,null,null,null,null,null,null,null,null,"X        --- ak malo družstvo prestup"]
[]
[null,null,null,null,null,null,null,null,null,null,null,null,"TIP: Ak potrebujete do tabuľky pridať nový riadok, presuňte sa do stĺpca \"H\" posledného riadku a stačte klávesu TAB."]

{"sheet":"Výsledky MUŽI nad 35 rokov","index":3,"n_rows":22,"n_cols":13,"rows_kept":22,"cut":false,"hidden":false,"merged":[[0,0,0,7],[0,12,1,12],[1,0,1,7],[21,12,22,12]]}
[{"$f":"'Vstupné údaje'!$B$4","v":"Memoriál baróna Friesenhofa"},null,null,null,null,null,null,null,null,null,null,null,"Návod na plnohodnotnú prácu s výsledkami"]
[{"$f":"CONCATENATE(\"Výsledky \",'Vstupné údaje'!$B$7,\". kola SMHL \",TEXT('Vstupné údaje'!$B$5,\"yyyy\"),\" v kategórii MUŽI nad 35 rokov, ktoré sa konalo \",TEXT('Vstupné údaje'!$B$5,\"dd.mm.yyyy\"),\" o \",TEXT('Vstupné údaje'!$B$6,\"hh:mm\"))","v":"Výsledky 1. kola SMHL 2022 v kategórii MUŽI nad 35 rokov, ktoré sa konalo 04.06.2022 o 14:00"}]
[]
["Por.","Družstvo","Okres","ĽP","PP","Výs. čas","Body","Prestup",null,null,null,null,"Pri zadávaní výsledkov sa vypĺňajú nasledujúce stĺpce (zvyšné sa vypočítajú automaticky):"]
[{"$f":"IF(Výsledky_ŽENY9[[#This Row],[Výs. čas]]=\"čas\",\"---\",IF(Výsledky_ŽENY9[[#This Row],[Výs. čas]]=99.99,\"---\",IF(Výsledky_ŽENY9[[#This Row],[Výs. čas]]=\"Diskv.\",\"---\",IF(Výsledky_ŽENY9[[#This Row],[Výs. čas]]=\"Neúčasť\",\"---\",_xlfn.RANK.EQ(Výsledky_ŽENY9[[#This Row],[Výs. čas]],Výsledky_ŽENY9[Výs. čas],1)))))","v":2},"Ihrište",null,16.47,15.75,16.47,{"$f":"IF(Výsledky_ŽENY9[[#This Row],[Por.]]=1,10,IF(Výsledky_ŽENY9[[#This Row],[Por.]]=2,8,IF(Výsledky_ŽENY9[[#This Row],[Por.]]=3,6,IF(Výsledky_ŽENY9[[#This Row],[Por.]]=4,4,IF(Výsledky_ŽENY9[[#This Row],[Por.]]=5,2,IF(Výsledky_ŽENY9[[#This Row],[Výs. čas]]=99.99,1,IF(Výsledky_ŽENY9[[#This Row],[Výs. čas]]=\"Diskv.\",1,IF(Výsledky_ŽENY9[[#This Row],[Výs. čas]]=\"Neúčasť\",0,2))))))))","v":8},null,null,null,null,null,"--- družstvo"]
[{"$f":"IF(Výsledky_ŽENY9[[#This Row],[Výs. čas]]=\"čas\",\"---\",IF(Výsledky_ŽENY9[[#This Row],[Výs. čas]]=99.99,\"---\",IF(Výsledky_ŽENY9[[#This Row],[Výs. čas]]=\"Diskv.\",\"---\",IF(Výsledky_ŽENY9[[#This Row],[Výs. čas]]=\"Neúčasť\",\"---\",_xlfn.RANK.EQ(Výsledky_ŽENY9[[#This Row],[Výs. čas]],Výsledky_ŽENY9[Výs. čas],1)))))","v":1},"Lednicke Rovne",null,15,15.77,15.77,{"$f":"IF(Výsledky_ŽENY9[[#This Row],[Por.]]=1,10,IF(Výsledky_ŽENY9[[#This Row],[Por.]]=2,8,IF(Výsledky_ŽENY9[[#This Row],[Por.]]=3,6,IF(Výsledky_ŽENY9[[#This Row],[Por.]]=4,4,IF(Výsledky_ŽENY9[[#This Row],[Por.]]=5,2,IF(Výsledky_ŽENY9[[#This Row],[Výs. čas]]=99.99,1,IF(Výsledky_ŽENY9[[#This Row],[Výs. čas]]=\"Diskv.\",1,IF(Výsledky_ŽENY9[[#This Row],[Výs. čas]]=\"Neúčasť\",0,2))))))))","v":10},"x",null,null,null,null,"--- okres"]
[{"$f":"IF(Výsledky_ŽENY9[[#This Row],[Výs. čas]]=\"čas\",\"---\",IF(Výsledky_ŽENY9[[#This Row],[Výs. čas]]=99.99,\"---\",IF(Výsledky_ŽENY9[[#This Row],[Výs. čas]]=\"Diskv.\",\"---\",IF(Výsledky_ŽENY9[[#This Row],[Výs. čas]]=\"Neúčasť\",\"---\",_xlfn.RANK.EQ(Výsledky_ŽENY9[[#This Row],[Výs. čas]],Výsledky_ŽENY9[Výs. čas],1)))))","v":"---"},null,null,null,null,{"$f":"IF(AND(ISBLANK(Výsledky_ŽENY9[[#This Row],[PP]])),\"čas\",IF(Výsledky_ŽENY9[[#This Row],[ĽP]]=\"D\",\"Diskv.\",IF(Výsledky_ŽENY9[[#This Row],[PP]]=\"D\",\"Diskv.\",IF(Výsledky_ŽENY9[[#This Row],[ĽP]]=\"n\",\"Neúčasť\",IF(Výsledky_ŽENY9[[#This Row],[PP]]=\"n\",\"Neúčasť\",MAX(SUBSTITUTE(Výsledky_ŽENY9[[#This Row],[ĽP]],\",\",\".\"),SUBSTITUTE(Výsledky_ŽENY9[[#This Row],[PP]],\",\",\".\")))))))","v":"čas"},{"$f":"IF(Výsledky_ŽENY9[[#This Row],[Por.]]=1,10,IF(Výsledky_ŽENY9[[#This Row],[Por.]]=2,8,IF(Výsledky_ŽENY9[[#This Row],[Por.]]=3,6,IF(Výsledky_ŽENY9[[#This Row],[Por.]]=4,4,IF(Výsledky_ŽENY9[[#This Row],[Por.]]=5,2,IF(Výsledky_ŽENY9[[#This Row],[Výs. čas]]=99.99,1,IF(Výsledky_ŽENY9[[#This Row],[Výs. čas]]=\"Diskv.\",1,IF(Výsledky_ŽENY9[[#This Row],[Výs. čas]]=\"Neúčasť\",0,2))))))))","v":2},null,null,null,null,null,"--- ľavý prúd (ĽP)"]
[{"$f":"IF(Výsledky_ŽENY9[[#This Row],[Výs. čas]]=\"čas\",\"---\",IF(Výsledky_ŽENY9[[#This Row],[Výs. čas]]=99.99,\"---\",IF(Výsledky_ŽENY9[[#This Row],[Výs. čas]]=\"Diskv.\",\"---\",IF(Výsledky_ŽENY9[[#This Row],[Výs. čas]]=\"Neúčasť\",\"---\",_xlfn.RANK.EQ(Výsledky_ŽENY9[[#This Row],[Výs. čas]],Výsledky_ŽENY9[Výs. čas],1)))))","v":"---"},null,null,null,null,{"$f":"IF(AND(ISBLANK(Výsledky_ŽENY9[[#This Row],[PP]])),\"čas\",IF(Výsledky_ŽENY9[[#This Row],[ĽP]]=\"D\",\"Diskv.\",IF(Výsledky_ŽENY9[[#This Row],[PP]]=\"D\",\"Diskv.\",IF(Výsledky_ŽENY9[[#This Row],[ĽP]]=\"n\",\"Neúčasť\",IF(Výsledky_ŽENY9[[#This Row],[PP]]=\"n\",\"Neúčasť\",MAX(SUBSTITUTE(Výsledky_ŽENY9[[#This Row],[ĽP]],\",\",\".\"),SUBSTITUTE(Výsledky_ŽENY9[[#This Row],[PP]],\",\",\".\")))))))","v":"čas"},{"$f":"IF(Výsledky_ŽENY9[[#This Row],[Por.]]=1,10,IF(Výsledky_ŽENY9[[#This Row],[Por.]]=2,8,IF(Výsledky_ŽENY9[[#This Row],[Por.]]=3,6,IF(Výsledky_ŽENY9[[#This Row],[Por.]]=4,4,IF(Výsledky_ŽENY9[[#This Row],[Por.]]=5,2,IF(Výsledky_ŽENY9[[#This Row],[Výs. čas]]=99.99,1,IF(Výsledky_ŽENY9[[#This Row],[Výs. čas]]=\"Diskv.\",1,IF(Výsledky_ŽENY9[[#This Row],[Výs. čas]]=\"Neúčasť\",0,2))))))))","v":2},null,null,null,null,null,"--- pravý prúd (PP)"]
[{"$f":"IF(Výsledky_ŽENY9[[#This Row],[Výs. čas]]=\"čas\",\"---\",IF(Výsledky_ŽENY9[[#This Row],[Výs. čas]]=99.99,\"---\",IF(Výsledky_ŽENY9[[#This Row],[Výs. čas]]=\"Diskv.\",\"---\",IF(Výsledky_ŽENY9[[#This Row],[Výs. čas]]=\"Neúčasť\",\"---\",_xlfn.RANK.EQ(Výsledky_ŽENY9[[#This Row],[Výs. čas]],Výsledky_ŽENY9[Výs. čas],1)))))","v":"---"},null,null,null,null,{"$f":"IF(AND(ISBLANK(Výsledky_ŽENY9[[#This Row],[PP]])),\"čas\",IF(Výsledky_ŽENY9[[#This Row],[ĽP]]=\"D\",\"Diskv.\",IF(Výsledky_ŽENY9[[#This Row],[PP]]=\"D\",\"Diskv.\",IF(Výsledky_ŽENY9[[#This Row],[ĽP]]=\"n\",\"Neúčasť\",IF(Výsledky_ŽENY9[[#This Row],[PP]]=\"n\",\"Neúčasť\",MAX(SUBSTITUTE(Výsledky_ŽENY9[[#This Row],[ĽP]],\",\",\".\"),SUBSTITUTE(Výsledky_ŽENY9[[#This Row],[PP]],\",\",\".\")))))))","v":"čas"},{"$f":"IF(Výsledky_ŽENY9[[#This Row],[Por.]]=1,10,IF(Výsledky_ŽENY9[[#This Row],[Por.]]=2,8,IF(Výsledky_ŽENY9[[#This Row],[Por.]]=3,6,IF(Výsledky_ŽENY9[[#This Row],[Por.]]=4,4,IF(Výsledky_ŽENY9[[#This Row],[Por.]]=5,2,IF(Výsledky_ŽENY9[[#This Row],[Výs. čas]]=99.99,1,IF(Výsledky_ŽENY9[[#This Row],[Výs. čas]]=\"Diskv.\",1,IF(Výsledky_ŽENY9[[#This Row],[Výs. čas]]=\"Neúčasť\",0,2))))))))","v":2},null,null,null,null,null,"--- prestup"]
[null,null,null,null,null,null,"Prestupov:",{"$f":"COUNTIF(Výsledky_ŽENY9[Prestup],\"X\")","v":1}]
[null,null,null,null,null,null,null,null,null,null,null,null,"Dovolený formát zadávaných údajov:"]
[null,null,null,null,null,null,null,null,null,null,null,null,"Družstvo, okres"]
[null,null,null,null,null,null,null,null,null,null,null,null,"--- ľubovoľný text"]
[null,null,null,null,null,null,null,null,null,null,null,null,"Ľavý/pravý prúd"]
[null,null,null,null,null,null,null,null,null,null,null,null,"14.00 --- dokončený pokus"]
[null,null,null,null,null,null,null,null,null,null,null,null,"99.99 --- nedokončený pokus"]
[null,null,null,null,null,null,null,null,null,null,null,null,"D        --- diskvalifikácia družstva"]
[null,null,null,null,null,null,null,null,null,null,null,null,"N        --- neúčasť družstva"]
[null,null,null,null,null,null,null,null,null,null,null,null,"Prestup"]
[null,null,null,null,null,null,null,null,null,null,null,null,"X        --- ak malo družstvo prestup"]
[]
[null,null,null,null,null,null,null,null,null,null,null,null,"TIP: Ak potrebujete do tabuľky pridať nový riadok, presuňte sa do stĺpca \"H\" posledného riadku a stačte klávesu TAB."]